fUSD/lending_fUSD_20251210
["ID","MTS","AMOUNT","RATE_DAILY","PERIOD"]
[398149280,1765403454166,-193.5626072,0.00041095,60]
[398149282,1765403454176,-500.0,0.00041095,60]
[398149284,1765403454186,-500.0,0.00041095,60]
[398149286,1765403454196,-500.0,0.00041095,60]
[398149289,1765403454207,-500.0,0.00041095,60]
[398149290,1765403454217,-239.89588074,0.00041095,60]
[398149296,1765403454256,-260.10411926,0.00041095,60]
[398149298,1765403454266,-500.0,0.00041095,60]
[398149299,1765403454276,-507.87006751,0.00041095,60]
[398149301,1765403454286,-500.0,0.00041095,60]
[398149304,1765403454297,-287.03504819,0.00041095,60]
[398149306,1765403454313,-212.96495181,0.00041095,60]
[398149308,1765403454323,-421.04788016,0.00041095,60]
[398149310,1765403454332,-500.0,0.00041095,60]
[398149312,1765403454342,-500.0,0.00041095,60]
[398149314,1765403454352,-500.0,0.00041095,60]
[398149316,1765403454362,-156.06300191,0.00041095,60]
[398149318,1765403454374,-343.93699809,0.00041095,60]
[398149321,1765403454384,-230.73212033,0.00041095,60]
[398149439,1765404558115,-301.74918856,0.000268,2]
[398149440,1765404558138,-152.09,0.000268,2]
[398149441,1765404558162,-408.0,0.000268,2]
[398149442,1765404558184,-151.64,0.000268,2]
[398149443,1765404558208,-500.0,0.00027207,7]
[398149444,1765404558231,-500.0,0.00027478,7]
[398149445,1765404558253,-412.782624,0.00031328,2]
[398149446,1765404558274,-1600.0,0.00031485,3]
[398149447,1765404558301,-1298.03888944,0.00031486,2]
[398149459,1765404631464,-3251.27384566,0.00031486,2]
[398149462,1765404631474,-912.76547824,0.00033899,3]
[398149466,1765404631521,-687.23452176,0.00033899,3]
[398149467,1765404631531,-1200.0,0.00033908,3]
[398149468,1765404631541,-300.0,0.00033908,2]
[398149469,1765404631550,-500.0,0.00033909,7]
[398149470,1765404631560,-600.0,0.00035998,2]
[398149471,1765404631571,-1357.13034631,0.00035999,2]
[398149472,1765404631584,-8642.85965369,0.00035999,2]
[398149473,1765404631594,-999.99,0.00035999,2]
[398149474,1765404631603,-8931.97,0.00035999,2]
[398149475,1765404631613,-150.99,0.00035999,2]
[398149476,1765404631768,-299.99,0.00035999,30]
[398149477,1765404631779,-9999.99,0.00035999,2]
[398149478,1765404631789,-2033.04,0.00035999,2]
[398149479,1765404631799,-1029.0,0.00036535,3]
[398149480,1765404631808,-872.66,0.00036676,5]
[398149481,1765404631817,-150.0,0.00036962,7]
[398149482,1765404631827,-150.0,0.00036962,7]
[398149483,1765404631836,-150.0,0.00036962,7]
[398149484,1765404631845,-150.0,0.00036962,7]
[398149485,1765404631855,-150.1065279,0.00036962,7]
[398149486,1765404631865,-250.0,0.00037184,2]
[398149487,1765404631875,-2572.977,0.0003728,48]
[398149488,1765404631885,-175.49,0.0003728,48]
[398149489,1765404631894,-3062.0995296,0.0003728,2]
[398149490,1765404631904,-5158.0,0.000377,5]
[398149491,1765404631914,-1120.3507157,0.000378,2]
[398149492,1765404631924,-150.0,0.00037988,7]
[398149493,1765404631933,-5000.0,0.00038029,2]
[398149494,1765404631943,-1000.0,0.00038038,2]
[398149495,1765404631953,-481.42,0.0003806,2]
[398149496,1765404631962,-200.0,0.00038257,2]
[398149497,1765404631972,-19645.97,0.00038313,2]
[398149498,1765404631982,-7463.1,0.00038558,2]
[398149499,1765404631991,-1784.35092913,0.00038719,2]
[398149500,1765404632003,-1543.6159584,0.00038719,2]
[398149501,1765404632015,-1203.27311247,0.00038719,2]
[398149502,1765404632024,-893.72688753,0.00038784,2]
[398149503,1765404632057,-1626.5616646,0.00038784,2]
[398149504,1765404632072,-1574.13176762,0.00038784,2]
[398149505,1765404632084,-891.87994714,0.00038784,2]
[398149506,1765404632117,-581.71973311,0.00038784,2]
[398149507,1765404632127,-8236.42604674,0.00038962,2]
[398149508,1765404632138,-16785.19473986,0.00038963,2]
[398149509,1765404632148,-150.0,0.00039015,7]
[398149510,1765404632157,-481.42,0.00039487,2]
[398149512,1765404632167,-9000.0,0.00039492,2]
[398149514,1765404632177,-9000.0,0.00039492,2]
[398149516,1765404632187,-9000.0,0.00039492,2]
[398149517,1765404632197,-7510.05217641,0.00039492,2]
[398149518,1765404637623,-692.42360236,0.00039492,2]
[398149519,1765404637681,-277.47084869,0.00039492,2]
[398149520,1765404637695,-520.05337254,0.00039492,2]
[398149521,1765404637705,-46.08882796,0.00039492,2]
[398149522,1765404637716,-954.91117204,0.00039492,2]
[398149523,1765404637725,-311.1,0.00039492,2]
[398149524,1765404637734,-314.28882399,0.00039597,60]
[398149525,1765404637753,-185.71117601,0.00039597,60]
[398149526,1765404637762,-500.0,0.00039597,60]
[398149527,1765404637772,-500.0,0.00039597,60]
[398149528,1765404637781,-548.72648863,0.0003994,15]
[398149529,1765404637790,-500.0,0.00039999,60]
[398149530,1765404637800,-249.14934491,0.0004001,2]
[398149531,1765404637809,-200.0,0.0004001,2]
[398149532,1765404637818,-500.0,0.0004001,2]
[398149533,1765404637832,-574.12855637,0.0004001,2]
[398149534,1765404637842,-1000.0,0.0004001,2]
[398149535,1765404637852,-500.0,0.0004001,2]
[398149537,1765404637862,-1000.0,0.0004001,2]
[398149539,1765404637872,-500.0,0.0004001,2]
[398149541,1765404637881,-1000.0,0.0004001,2]
[398149543,1765404637892,-500.0,0.0004001,2]
[398149544,1765404637902,-1000.0,0.0004001,2]
[398149545,1765404637911,-500.0,0.0004001,2]
[398149547,1765404637921,-1000.0,0.0004001,2]
[398149549,1765404637931,-500.0,0.0004001,2]
[398149550,1765404637940,-500.0,0.0004001,2]
[398149552,1765404637950,-500.0,0.0004001,2]
[398149553,1765404637960,-151.0,0.0004001,2]
[398149554,1765404637970,-500.0,0.0004001,2]
[398149555,1765404637982,-151.0,0.0004001,2]
[398149557,1765404637991,-500.0,0.0004001,2]
[398149558,1765404638001,-151.0,0.0004001,2]
[398149559,1765404638011,-345.9964873,0.0004001,2]
[398149560,1765404638025,-500.0,0.0004001,2]
[398149561,1765404638035,-151.0,0.0004001,2]
[398149562,1765404638045,-500.0,0.0004001,2]
[398149563,1765404638056,-151.0,0.0004001,2]
[398149564,1765404638067,-500.0,0.0004001,2]
[398149565,1765404638076,-151.0,0.0004001,2]
[398149566,1765404638087,-500.0,0.0004001,2]
[398149567,1765404638097,-151.0,0.0004001,2]
[398149568,1765404638107,-500.0,0.0004001,2]
[398149569,1765404638117,-151.0,0.0004001,2]
[398149570,1765404638128,-500.0,0.0004001,2]
[398149571,1765404638138,-151.0,0.0004001,2]
[398149572,1765404638149,-500.0,0.0004001,2]
[398149573,1765404638159,-200.0,0.0004001,2]
[398149574,1765404638170,-151.0,0.0004001,2]
[398149575,1765404638180,-500.0,0.0004001,2]
[398149576,1765404638190,-151.0,0.0004001,2]
[398149577,1765404638200,-500.0,0.0004001,2]
[398149578,1765404638211,-151.0,0.0004001,2]
[398149579,1765404638221,-500.0,0.0004001,2]
[398149580,1765404638235,-151.0,0.0004001,2]
[398149581,1765404638245,-250.0,0.0004001,2]
[398149582,1765404638255,-500.0,0.0004001,2]
[398149583,1765404638265,-151.0,0.0004001,2]
[398149584,1765404638277,-500.0,0.0004001,2]
[398149585,1765404638287,-500.0,0.0004001,2]
[398149586,1765404638297,-151.0,0.0004001,2]
[398149587,1765404638307,-500.0,0.0004001,2]
[398149588,1765404638317,-500.0,0.0004001,2]
[398149589,1765404638327,-151.0,0.0004001,2]
[398149590,1765404638337,-500.0,0.0004001,2]
[398149591,1765404638348,-151.0,0.0004001,2]
[398149592,1765404638357,-500.0,0.0004001,2]
[398149593,1765404638368,-151.0,0.0004001,2]
[398149594,1765404638378,-500.0,0.0004001,2]
[398149595,1765404638392,-500.0,0.0004001,2]
[398149596,1765404638402,-500.0,0.0004001,2]
[398149597,1765404638413,-151.0,0.0004001,2]
[398149598,1765404638423,-151.0,0.0004001,2]
[398149599,1765404638434,-500.0,0.0004001,2]
[398149600,1765404638444,-165.06813051,0.0004001,2]
[398149601,1765404638455,-500.0,0.0004001,2]
[398149602,1765404638465,-500.0,0.0004001,2]
[398149603,1765404638475,-500.0,0.0004001,2]
[398149604,1765404638487,-500.0,0.0004001,2]
[398149605,1765404638498,-151.0,0.0004001,2]
[398149606,1765404638508,-151.0,0.0004001,2]
[398149607,1765404638519,-200.0,0.0004001,2]
[398149608,1765404638529,-151.0,0.0004001,2]
[398149609,1765404638539,-151.0,0.0004001,2]
[398149610,1765404638549,-151.0,0.0004001,2]
[398149611,1765404638560,-151.0,0.0004001,2]
[398149612,1765404638570,-151.0,0.0004001,2]
[398149613,1765404638580,-151.0,0.0004001,2]
[398149614,1765404638590,-151.0,0.0004001,2]
[398149615,1765404638600,-151.0,0.0004001,2]
[398149616,1765404638610,-151.0,0.0004001,2]
[398149617,1765404638621,-55795.08659717,0.00040034,2]
[398149618,1765404638632,-1001.0,0.0004004,2]
[398149619,1765404638642,-322.6107,0.0004004,2]
[398149620,1765404638652,-150.0,0.00040042,7]
[398149621,1765404638662,-5491.0,0.0004005,120]
[398149622,1765404638672,-548.72648857,0.00040122,15]
[398149623,1765404638683,-210.82496467,0.00040289,18]
[398149624,1765404638693,-548.72648857,0.00040304,15]
[398149625,1765404638704,-1000.0,0.00040385,2]
[398149626,1765404638715,-2500.0,0.00040385,2]
[398149627,1765404638726,-600.33826572,0.00040389,7]
[398149628,1765404638737,-548.72648857,0.00040486,15]
[398149629,1765404638751,-563.0,0.00040554,2]
[398149630,1765404638762,-4721.742,0.00040554,2]
[398149631,1765404638773,-595.37131296,0.00040558,2]
[398149632,1765404638783,-200.0,0.00040558,2]
[398149633,1765404638794,-500.0,0.00040558,2]
[398149634,1765404638804,-200.0,0.00040558,2]
[398149635,1765404638815,-1001.0,0.00040588,2]
[398149636,1765404638825,-361.45215856,0.00040588,2]
[398149637,1765404638836,-548.72648857,0.00040668,15]
[398149638,1765404638846,-1288.29090408,0.0004075,15]
[398149639,1765404638856,-195586.93782683,0.00040825,2]
[398149640,1765404638870,-11769.4294274,0.00040825,2]
[398149641,1765404638881,-1288.29090406,0.00040842,15]
[398149642,1765404638891,-548.72648857,0.0004085,15]
[398149643,1765404638901,-197.25538659,0.00040895,2]
[398149644,1765404638912,-2691.95655563,0.00040895,16]
[398149645,1765404638921,-5000.0,0.00040895,120]
[398149646,1765404638932,-2691.95655562,0.00040898,16]
[398149647,1765404638945,-2691.95655562,0.000409,16]
[398149648,1765404638956,-481.42,0.00040914,2]
[398149649,1765404638965,-1288.29090406,0.00040934,15]
[398149650,1765404638975,-600.0,0.00040969,30]
[398149651,1765404638986,-242.75,0.0004097,30]
[398149652,1765404638997,-634.96754228,0.00040975,4]
[398149653,1765404639007,-8254.57804964,0.00040985,4]
[398149654,1765404639017,-500.0,0.00040994,31]
[398149655,1765404639027,-500.0,0.00040994,31]
[398149656,1765404639037,-500.0,0.00040994,31]
[398149657,1765404639047,-603.68638226,0.00040994,31]
[398149658,1765404639057,-4545.6804,0.00040995,2]
[398149659,1765404639067,-1000.0,0.00040995,2]
[398149660,1765404639078,-92153.49847186,0.00040995,120]
[398149661,1765404639090,-1031.65750244,0.00040995,120]
[398149664,1765404639707,-770.45357976,0.00040995,120]
[398149665,1765404639719,-342.108,0.00040995,120]
[398149666,1765404639821,-4615.98894594,0.00040995,120]
[398149667,1765404639831,-3177.0,0.00041,120]
[398149668,1765404639846,-500.0,0.00041,120]
[398149669,1765404639858,-150.0,0.0004102,2]
[398149670,1765404639868,-500.0,0.0004102,2]
[398149671,1765404639877,-500.0,0.0004102,2]
[398149672,1765404639886,-500.0,0.0004102,2]
[398149673,1765404639897,-500.0,0.0004102,2]
[398149674,1765404639914,-150.0,0.0004102,2]
[398149675,1765404639931,-150.0,0.0004102,2]
[398149676,1765404639943,-1288.29090406,0.00041026,15]
[398149677,1765404639953,-548.72648857,0.00041032,15]
[398149678,1765404639964,-150.00000001,0.00041068,7]
[398149679,1765404639975,-165.40022359,0.00041068,7]
[398149680,1765404639985,-150.0,0.00041068,7]
[398149681,1765404639995,-430.98152848,0.00041085,7]
[398149682,1765404640006,-500.0,0.00041094,31]
[398149683,1765404640016,-377.74838633,0.00041094,31]
[398149684,1765404640026,-556.72683777,0.00041094,31]
[398149685,1765404640036,-5446.03688037,0.00041095,33]
[398149686,1765404640047,-500.0,0.00041095,60]
[398149687,1765404640057,-500.0,0.00041095,60]
[398149688,1765404640067,-359.05969197,0.00041095,60]
[398149689,1765404640077,-503.85485729,0.00041095,60]
[398149690,1765404640087,-506.83111077,0.00041095,60]
[398149691,1765404640097,-244.2098535,0.00041095,2]
[398149692,1765404640107,-500.0,0.00041095,60]
[398149693,1765404640117,-500.0,0.00041095,60]
[398149694,1765404640127,-500.0,0.00041095,60]
[398149695,1765404640137,-500.0,0.00041095,60]
[398149696,1765404640147,-503.42734157,0.00041095,60]
[398149697,1765404640157,-501.56545785,0.00041095,60]
[398149699,1765404640166,-403.4867502,0.00041095,60]
[398149701,1765404640176,-500.0,0.00041095,60]
[398149702,1765404640186,-500.0,0.00041095,60]
[398149703,1765404640195,-500.0,0.00041095,60]
[398149704,1765404640204,-500.0,0.00041095,60]
[398149705,1765404640214,-500.0,0.00041095,60]
[398149707,1765404640226,-500.0,0.00041095,60]
[398149709,1765404640242,-500.0,0.00041095,60]
[398149711,1765404640251,-500.0,0.00041095,60]
[398149713,1765404640261,-500.0,0.00041095,60]
[398149715,1765404640273,-500.0,0.00041095,60]
[398149717,1765404640283,-500.0,0.00041095,60]
[398149719,1765404640292,-501.50236343,0.00041095,60]
[398149721,1765404640302,-481.92139335,0.00041095,60]
[398149723,1765404640313,-500.0,0.00041095,60]
[398149726,1765404640323,-500.0,0.00041095,60]
[398149728,1765404640333,-500.0,0.00041095,60]
[398149730,1765404640343,-500.0,0.00041095,60]
[398149732,1765404640353,-500.0,0.00041095,60]
[398149734,1765404640362,-500.0,0.00041095,60]
[398149736,1765404640372,-500.0,0.00041095,60]
[398149738,1765404640382,-500.0,0.00041095,60]
[398149740,1765404640392,-207.71246096,0.00041095,60]
[398149742,1765404640402,-502.767952,0.00041095,60]
[398149744,1765404640411,-500.0,0.00041095,15]
[398149746,1765404640421,-500.0,0.00041095,15]
[398149748,1765404640432,-615.52521743,0.00041095,60]
[398149750,1765404640442,-500.0,0.00041095,60]
[398149752,1765404640451,-500.0,0.00041095,60]
[398149754,1765404640461,-500.0,0.00041095,60]
[398149756,1765404640471,-502.15608545,0.00041095,60]
[398149758,1765404640481,-500.0,0.00041095,60]
[398149760,1765404640491,-500.0,0.00041095,60]
[398149762,1765404640500,-500.0,0.00041095,60]
[398149764,1765404640510,-585.25,0.00041095,60]
[398149766,1765404640519,-500.0,0.00041095,60]
[398149769,1765404640530,-500.0,0.00041095,60]
[398149771,1765404640540,-500.0,0.00041095,60]
[398149773,1765404640550,-500.0,0.00041095,60]
[398149775,1765404640560,-500.0,0.00041095,60]
[398149777,1765404640570,-500.0,0.00041095,60]
[398149779,1765404640580,-500.0,0.00041095,60]
[398149781,1765404640591,-500.0,0.00041095,60]
[398149783,1765404640601,-500.0,0.00041095,60]
[398149785,1765404640611,-500.0,0.00041095,60]
[398149787,1765404640620,-500.0,0.00041095,60]
[398149789,1765404640631,-500.92980236,0.00041095,60]
[398149792,1765404640641,-500.0,0.00041095,60]
[398149794,1765404640651,-500.0,0.00041095,60]
[398149796,1765404640660,-500.0,0.00041095,60]
[398149798,1765404640670,-500.0,0.00041095,60]
[398149800,1765404640679,-358.35335597,0.00041095,60]
[398149802,1765404640688,-500.0,0.00041095,60]
[398149804,1765404640698,-517.38942807,0.00041095,60]
[398149806,1765404640708,-500.0,0.00041095,60]
[398149808,1765404640717,-500.0,0.00041095,60]
[398149810,1765404640727,-500.0,0.00041095,60]
[398149812,1765404640737,-500.0,0.00041095,60]
[398149814,1765404640747,-500.0,0.00041095,60]
[398149816,1765404640756,-500.0,0.00041095,60]
[398149818,1765404640766,-500.0,0.00041095,60]
[398149820,1765404640775,-500.0,0.00041095,60]
[398149822,1765404640785,-356.27,0.00041095,60]
[398149825,1765404640795,-500.0,0.00041095,60]
[398149827,1765404640805,-500.0,0.00041095,60]
[398149829,1765404640814,-500.0,0.00041095,60]
[398149831,1765404640823,-500.0,0.00041095,60]
[398149833,1765404640833,-500.0,0.00041095,60]
[398149835,1765404640842,-500.0,0.00041095,60]
[398149836,1765404640852,-500.0,0.00041095,60]
[398149837,1765404640861,-500.0,0.00041095,60]
[398149838,1765404640871,-500.0,0.00041095,60]
[398149839,1765404640881,-500.0,0.00041095,60]
[398149840,1765404640891,-500.0,0.00041095,60]
[398149841,1765404640901,-500.0,0.00041095,60]
[398149842,1765404640911,-500.0,0.00041095,60]
[398149843,1765404640920,-500.0,0.00041095,60]
[398149844,1765404640929,-500.0,0.00041095,60]
[398149845,1765404640939,-500.0,0.00041095,60]
[398149846,1765404640948,-500.0,0.00041095,60]
[398149847,1765404640957,-500.0,0.00041095,60]
[398149849,1765404640966,-500.0,0.00041095,60]
[398149850,1765404640975,-500.0,0.00041095,60]
[398149851,1765404640985,-500.0,0.00041095,60]
[398149852,1765404640995,-500.0,0.00041095,60]
[398149854,1765404641004,-500.0,0.00041095,60]
[398149856,1765404641014,-500.0,0.00041095,60]
[398149858,1765404641023,-16927.2147081,0.00041095,2]
[398149860,1765404641033,-500.0,0.00041095,60]
[398149862,1765404641043,-500.0,0.00041095,60]
[398149865,1765404641058,-500.0,0.00041095,60]
[398149867,1765404641068,-505.66688258,0.00041095,60]
[398149869,1765404641078,-500.0,0.00041095,60]
[398149871,1765404641087,-500.0,0.00041095,60]
[398149873,1765404641097,-500.0,0.00041095,60]
[398149875,1765404641106,-500.0,0.00041095,60]
[398149878,1765404641116,-500.0,0.00041095,60]
[398149880,1765404641125,-500.0,0.00041095,60]
[398149882,1765404641134,-502.11592704,0.00041095,60]
[398149884,1765404641143,-500.0,0.00041095,60]
[398149886,1765404641153,-500.0,0.00041095,60]
[398149888,1765404641163,-500.0,0.00041095,60]
[398149890,1765404641172,-500.0,0.00041095,60]
[398149892,1765404641181,-500.0,0.00041095,60]
[398149894,1765404641190,-500.0,0.00041095,60]
[398149896,1765404641199,-500.0,0.00041095,60]
[398149898,1765404641209,-500.0,0.00041095,60]
[398149900,1765404641219,-500.0,0.00041095,60]
[398149902,1765404641231,-500.0,0.00041095,60]
[398149904,1765404641241,-500.0,0.00041095,60]
[398149906,1765404641251,-500.0,0.00041095,60]
[398149908,1765404641260,-500.0,0.00041095,60]
[398149910,1765404641271,-500.0,0.00041095,60]
[398149913,1765404641281,-500.0,0.00041095,60]
[398149915,1765404641290,-500.0,0.00041095,60]
[398149917,1765404641299,-500.0,0.00041095,2]
[398149919,1765404641309,-500.0,0.00041095,2]
[398149921,1765404641318,-500.0,0.00041095,2]
[398149923,1765404641328,-500.0,0.00041095,60]
[398149925,1765404641337,-500.0,0.00041095,2]
[398149927,1765404641347,-500.0,0.00041095,60]
[398149929,1765404641356,-500.0,0.00041095,60]
[398149931,1765404641366,-500.0,0.00041095,60]
[398149933,1765404641376,-500.0,0.00041095,60]
[398149935,1765404641386,-500.0,0.00041095,60]
[398149937,1765404641395,-500.0,0.00041095,60]
[398149939,1765404641405,-500.0,0.00041095,60]
[398149941,1765404641414,-500.0,0.00041095,60]
[398149943,1765404641424,-500.0,0.00041095,60]
[398149945,1765404641434,-500.0,0.00041095,60]
[398149947,1765404641443,-500.0,0.00041095,60]
[398149949,1765404641453,-500.93769086,0.00041095,60]
[398149951,1765404641462,-500.0,0.00041095,60]
[398149953,1765404641472,-500.0,0.00041095,60]
[398149955,1765404641482,-536.18214328,0.00041095,60]
[398149957,1765404641493,-500.0,0.00041095,60]
[398149960,1765404641502,-500.0,0.00041095,60]
[398149962,1765404641512,-500.0,0.00041095,60]
[398149976,1765404641640,-500.0,0.00041095,60]
[398149978,1765404641651,-500.0,0.00041095,60]
[398149981,1765404641662,-500.0,0.00041095,60]
[398149983,1765404641672,-500.0,0.00041095,60]
[398149985,1765404641682,-500.0,0.00041095,60]
[398149987,1765404641691,-540.3502004,0.00041095,60]
[398149989,1765404641700,-500.0,0.00041095,60]
[398149991,1765404641709,-500.0,0.00041095,60]
[398149993,1765404641719,-500.0,0.00041095,60]
[398149995,1765404641729,-500.0,0.00041095,60]
[398149997,1765404641739,-500.0,0.00041095,60]
[398149999,1765404641748,-526.68108557,0.00041095,60]
[398150001,1765404641758,-500.0,0.00041095,60]
[398150003,1765404641767,-500.0,0.00041095,60]
[398150005,1765404641777,-500.0,0.00041095,60]
[398150007,1765404641786,-500.0,0.00041095,60]
[398150009,1765404641795,-500.0,0.00041095,60]
[398150011,1765404641805,-500.0,0.00041095,60]
[398150013,1765404641814,-500.0,0.00041095,14]
[398150015,1765404641823,-500.0,0.00041095,60]
[398150017,1765404641833,-509.45915435,0.00041095,14]
[398150019,1765404641842,-500.0,0.00041095,60]
[398150021,1765404641851,-500.0,0.00041095,60]
[398150023,1765404641861,-500.0,0.00041095,60]
[398150025,1765404641871,-500.0,0.00041095,60]
[398150027,1765404641881,-500.0,0.00041095,60]
[398150028,1765404641890,-500.0,0.00041095,60]
[398150029,1765404641899,-500.0,0.00041095,60]
[398150030,1765404641909,-500.0,0.00041095,60]
[398150031,1765404641918,-500.0,0.00041095,60]
[398150032,1765404641927,-500.0,0.00041095,60]
[398150033,1765404641936,-500.0,0.00041095,60]
[398150034,1765404641946,-500.8508506,0.00041095,60]
[398150035,1765404641955,-500.0,0.00041095,60]
[398150036,1765404641964,-500.0,0.00041095,60]
[398150037,1765404641974,-500.0,0.00041095,60]
[398150038,1765404641983,-500.0,0.00041095,60]
[398150039,1765404641993,-500.0,0.00041095,60]
[398150040,1765404642003,-499.04033918,0.00041095,60]
[398150041,1765404642013,-500.0,0.00041095,60]
[398150042,1765404642022,-500.0,0.00041095,60]
[398150043,1765404642031,-500.0,0.00041095,60]
[398150044,1765404642041,-500.0,0.00041095,60]
[398150045,1765404642050,-500.0,0.00041095,60]
[398150046,1765404642060,-500.0,0.00041095,60]
[398150047,1765404642070,-500.0,0.00041095,60]
[398150048,1765404642079,-500.0,0.00041095,60]
[398150049,1765404642089,-500.0,0.00041095,60]
[398150050,1765404642098,-500.0,0.00041095,60]
[398150051,1765404642108,-500.0,0.00041095,60]
[398150052,1765404642118,-500.0,0.00041095,60]
[398150053,1765404642127,-500.0,0.00041095,60]
[398150054,1765404642136,-501.96543159,0.00041095,60]
[398150055,1765404642145,-500.0,0.00041095,60]
[398150056,1765404642155,-500.0,0.00041095,60]
[398150057,1765404642165,-500.0,0.00041095,60]
[398150058,1765404642174,-500.0,0.00041095,60]
[398150059,1765404642183,-500.0,0.00041095,60]
[398150060,1765404642193,-150.0,0.00041095,60]
[398150061,1765404642202,-500.0,0.00041095,60]
[398150062,1765404642212,-500.0,0.00041095,60]
[398150063,1765404642222,-500.0,0.00041095,60]
[398150064,1765404642234,-500.0,0.00041095,60]
[398150065,1765404642244,-500.0,0.00041095,60]
[398150066,1765404642254,-500.0,0.00041095,60]
[398150067,1765404642263,-476.16650489,0.00041095,60]
[398150068,1765404642274,-500.0,0.00041095,60]
[398150069,1765404642284,-500.0,0.00041095,60]
[398150070,1765404642293,-500.0,0.00041095,60]
[398150071,1765404642304,-500.0,0.00041095,60]
[398150072,1765404642314,-500.0,0.00041095,60]
[398150073,1765404642323,-500.0,0.00041095,60]
[398150074,1765404642333,-500.0,0.00041095,60]
[398150075,1765404642343,-500.0,0.00041095,60]
[398150076,1765404642353,-500.0,0.00041095,60]
[398150077,1765404642362,-500.0,0.00041095,60]
[398150078,1765404642371,-500.0,0.00041095,60]
[398150079,1765404642380,-500.0,0.00041095,60]
[398150080,1765404642389,-503.25135797,0.00041095,60]
[398150082,1765404642398,-500.0,0.00041095,60]
[398150083,1765404642408,-500.0,0.00041095,60]
[398150084,1765404642417,-500.0,0.00041095,60]
[398150085,1765404642426,-500.0,0.00041095,60]
[398150086,1765404642436,-500.0,0.00041095,60]
[398150087,1765404642446,-500.0,0.00041095,60]
[398150088,1765404642455,-500.0,0.00041095,60]
[398150089,1765404642464,-500.0,0.00041095,60]
[398150090,1765404642474,-500.0,0.00041095,60]
[398150091,1765404642483,-503.43015851,0.00041095,60]
[398150092,1765404642493,-500.0,0.00041095,60]
[398150093,1765404642503,-7329.7523694,0.00041095,2]
[398150094,1765404642513,-449.05264634,0.00041095,60]
[398150095,1765404642523,-500.0,0.00041095,60]
[398150096,1765404642532,-500.0,0.00041095,60]
[398150097,1765404642542,-500.0,0.00041095,60]
[398150098,1765404642551,-506.62763462,0.00041095,60]
[398150099,1765404642560,-500.0,0.00041095,60]
[398150100,1765404642570,-500.0,0.00041095,60]
[398150101,1765404642579,-500.0,0.00041095,60]
[398150102,1765404642588,-500.0,0.00041095,60]
[398150103,1765404642597,-500.0,0.00041095,60]
[398150104,1765404642606,-500.0,0.00041095,60]
[398150105,1765404642616,-623.39296075,0.00041095,60]
[398150106,1765404642625,-500.0,0.00041095,60]
[398150107,1765404642634,-500.0,0.00041095,60]
[398150108,1765404642644,-500.0,0.00041095,60]
[398150109,1765404642654,-500.0,0.00041095,60]
[398150110,1765404642663,-646.78501457,0.00041095,60]
[398150111,1765404642673,-500.0,0.00041095,60]
[398150112,1765404642683,-500.0,0.00041095,11]
[398150113,1765404642692,-500.0,0.00041095,11]
[398150114,1765404642702,-500.0,0.00041095,60]
[398150115,1765404642711,-500.0,0.00041095,60]